fUSD/lending_fUSD_20250205
["ID","MTS","AMOUNT","RATE_DAILY","PERIOD"]
[351802825,1738792273053,-500.0,0.00012601,2]
[351802826,1738792273064,-590.33,0.00012601,2]
[351802827,1738792273073,-500.0,0.00012601,2]
[351802828,1738792273084,-500.0,0.00012601,2]
[351802829,1738792273094,-61942.2,0.00012603,2]
[351802830,1738792273103,-1092.09,0.00012691,2]
[351802831,1738792273115,-500.0,0.00012721,2]
[351802832,1738792273124,-500.0,0.00012721,2]
[351802833,1738792273134,-1000.0,0.00012721,2]
[351802834,1738792273144,-500.0,0.00012721,2]
[351802835,1738792273154,-500.0,0.00012721,2]
[351802836,1738792273163,-539.96,0.00012721,2]
[351802837,1738792273172,-500.0,0.00012738,2]
[351802838,1738792273182,-1037.66,0.00012738,2]
[351802839,1738792273191,-500.0,0.00012738,2]
[351802840,1738792273200,-500.0,0.00012738,2]
[351802841,1738792273210,-781.52,0.00012738,2]
[351802842,1738792273219,-505.74,0.00012738,2]
[351802843,1738792273346,-500.0,0.00012738,2]
[351802844,1738792273356,-1137.64,0.00012738,2]
[351802845,1738792273366,-329.8,0.00012738,2]
[351802846,1738792273376,-590.33,0.00012738,2]
[351802847,1738792273386,-500.0,0.00012738,2]
[351802848,1738792273396,-500.0,0.00012738,2]
[351802849,1738792273406,-15315.0,0.0001274,2]
[351802850,1738792273417,-5442.0,0.0001274,2]
[351802851,1738792273427,-21433.0,0.0001274,2]
[351802852,1738792273438,-151.66952,0.0001274,2]
[351802853,1738792273447,-151.66952,0.0001274,2]
[351802854,1738792273459,-1000.0,0.00012758,2]
[351802855,1738792273469,-160.42,0.00012779,2]
[351802856,1738792273480,-500.0,0.00012858,2]
[351802857,1738792273491,-500.0,0.00012858,2]
[351802858,1738792273502,-1000.0,0.00012858,2]
[351802859,1738792273513,-500.0,0.00012858,2]
[351802860,1738792273523,-500.0,0.00012858,2]
[351802861,1738792273533,-539.96,0.00012858,2]
[351802862,1738792273542,-1000.0,0.0001287,2]
[351802863,1738792273551,-332.1,0.00012875,2]
[351802864,1738792273560,-1037.66,0.00012875,2]
[351802865,1738792273570,-500.0,0.00012875,2]
[351802866,1738792273580,-500.0,0.00012875,2]
[351802867,1738792273589,-781.52,0.00012875,2]
[351802868,1738792273599,-505.74,0.00012875,2]
[351802869,1738792273608,-500.0,0.00012875,2]
[351802870,1738792273617,-1137.64,0.00012875,2]
[351802871,1738792273626,-590.33,0.00012875,2]
[351802872,1738792273636,-500.0,0.00012875,2]
[351802873,1738792273645,-407.24,0.00012875,2]
[351802874,1738792273655,-251.74,0.00012877,2]
[351802875,1738792273664,-5000.000001,0.00012888,2]
[351802876,1738792273673,-500.0,0.00012904,2]
[351802877,1738792273683,-500.0,0.00012904,2]
[351802878,1738792273692,-1000.0,0.0001297,2]
[351802879,1738792273702,-781.81017173,0.0001297,2]
[351802880,1738792273712,-500.0,0.00012995,2]
[351802881,1738792273721,-500.0,0.00012995,2]
[351802882,1738792273731,-1000.0,0.00012995,2]
[351802883,1738792273741,-500.0,0.00012995,2]
[351802884,1738792273750,-500.0,0.00012995,2]
[351802885,1738792273760,-539.96,0.00012995,2]
[351802886,1738792273769,-3500.0,0.00013,2]
[351802887,1738792273778,-4236.91520014,0.00013,2]
[351802888,1738792273788,-437.88728577,0.00013,2]
[351802889,1738792273797,-121947.923631,0.00013,11]
[351802890,1738792273807,-20543.43812541,0.00013,15]
[351802891,1738792273816,-2553.0199188,0.00013,3]
[351802892,1738792273826,-15352.08290084,0.00013,15]
[351802893,1738792273835,-9999.0,0.00013,9]
[351802894,1738792273845,-9999.0,0.00013,10]
[351802895,1738792273855,-500.0,0.00013,2]
[351802896,1738792273864,-500.0,0.00013,2]
[351802897,1738792273874,-288.064895,0.00013,2]
[351802898,1738792273883,-288.064895,0.00013,2]
[351802899,1738792273893,-155.962888,0.00013,2]
[351802900,1738792273903,-155.962888,0.00013,2]
[351802901,1738792273912,-718.828214,0.00013,2]
[351802902,1738792273922,-718.828224,0.00013,2]
[351802903,1738792273931,-201.284383,0.00013,2]
[351802904,1738792273941,-151.0,0.00013,2]
[351802905,1738792273951,-4543.974737,0.00013,2]
[351802906,1738792273961,-4543.974733,0.00013,2]
[351802907,1738792273970,-790.36126,0.00013,2]
[351802908,1738792273979,-790.36126,0.00013,2]
[351802909,1738792273989,-219.0,0.00013,2]
[351802910,1738792273999,-151.0,0.00013,2]
[351802911,1738792274009,-550.0,0.00013,2]
[351802912,1738792274018,-956.205905,0.00013,2]
[351802913,1738792274028,-956.205899,0.00013,2]
[351802914,1738792274042,-550.0,0.00013,2]
[351802915,1738792274051,-895.034789,0.00013,2]
[351802916,1738792274061,-895.034792,0.00013,2]
[351802917,1738792274070,-667.183878,0.00013,2]
[351802918,1738792274081,-173.003799,0.00013,2]
[351802919,1738792274090,-173.003808,0.00013,2]
[351802920,1738792274099,-151.0,0.00013,2]
[351802921,1738792274108,-159.666033,0.00013,2]
[351802922,1738792274119,-159.666029,0.00013,2]
[351802923,1738792274129,-289.165092,0.00013,2]
[351802924,1738792274139,-289.165089,0.00013,2]
[351802925,1738792274148,-475.956569,0.00013,2]
[351802926,1738792274158,-302.532782,0.00013,2]
[351802927,1738792274168,-475.956578,0.00013,2]
[351802928,1738792274178,-302.532787,0.00013,2]
[351802929,1738792274188,-1037.66,0.00013012,2]
[351802930,1738792274198,-574.69,0.00013012,2]
[351802931,1738792274208,-500.0,0.00013012,2]
[351802932,1738792274217,-781.52,0.00013012,2]
[351802933,1738792274227,-505.74,0.00013012,2]
[351802934,1738792274236,-500.0,0.00013012,2]
[351802935,1738792274246,-1137.64,0.00013012,2]
[351802936,1738792274256,-590.33,0.00013012,2]
[351802937,1738792274266,-500.0,0.00013012,2]
[351802938,1738792274275,-152.0,0.0001305,6]
[351802939,1738792274284,-5116.03284044,0.0001305,2]
[351802940,1738792274294,-150.0,0.00013068,2]
[351802941,1738792274303,-1000.0,0.0001307,2]
[351802942,1738792274313,-500.0,0.0001307,2]
[351802943,1738792274322,-500.0,0.00013132,2]
[351802944,1738792274331,-500.0,0.00013132,2]
[351802945,1738792274341,-1000.0,0.00013132,2]
[351802946,1738792274350,-500.0,0.00013132,2]
[351802947,1738792274360,-500.0,0.00013132,2]
[351802948,1738792274370,-539.96,0.00013132,2]
[351802949,1738792274380,-1037.66,0.00013149,2]
[351802950,1738792274390,-346.48,0.00013149,2]
[351802951,1738792274400,-781.52,0.00013149,2]
[351802952,1738792274409,-505.74,0.00013149,2]
[351802953,1738792274419,-500.0,0.00013149,2]
[351802954,1738792274428,-1137.64,0.00013149,2]
[351802955,1738792274438,-590.33,0.00013149,2]
[351802956,1738792274448,-500.0,0.00013149,2]
[351802957,1738792274457,-151.53588216,0.00013151,2]
[351802958,1738792274466,-1000.0,0.0001317,2]
[351802959,1738792274475,-500.0,0.0001317,2]
[351802960,1738792274485,-410.45,0.00013242,2]
[351802961,1738792274495,-500.0,0.00013269,2]
[351802962,1738792274505,-500.0,0.00013269,2]
[351802963,1738792274516,-1000.0,0.00013269,2]
[351802964,1738792274525,-500.0,0.00013269,2]
[351802965,1738792274535,-500.0,0.00013269,2]
[351802966,1738792274546,-539.96,0.00013269,2]
[351802967,1738792274555,-1037.66,0.00013286,2]
[351802968,1738792274564,-781.52,0.00013286,2]
[351802969,1738792274575,-505.74,0.00013286,2]
[351802970,1738792274584,-394.36,0.00013286,2]
[351802971,1738792274594,-1137.64,0.00013286,2]
[351802972,1738792274603,-590.33,0.00013286,2]
[351802973,1738792274613,-500.0,0.00013286,2]
[351802974,1738792274622,-1862.25675,0.000133,2]
[351802975,1738792274631,-481.759842,0.00013369,2]
[351802976,1738792274640,-481.75984,0.00013369,2]
[351802977,1738792274650,-151.0,0.00013369,2]
[351802978,1738792274659,-2649.170151,0.00013369,2]
[351802979,1738792274668,-2649.170158,0.00013369,2]
[351802980,1738792274677,-163.262264,0.00013369,2]
[351802981,1738792274686,-163.262256,0.00013369,2]
[351802982,1738792274696,-151.0,0.00013369,2]
[351802983,1738792274704,-151.0,0.00013369,2]
[351802984,1738792274714,-500.0,0.00013406,2]
[351802985,1738792274725,-500.0,0.00013406,2]
[351802986,1738792274735,-1000.0,0.00013406,2]
[351802987,1738792274744,-500.0,0.00013406,2]
[351802988,1738792274754,-500.0,0.00013406,2]
[351802989,1738792274765,-539.96,0.00013406,2]
[351802990,1738792274774,-236.52,0.00013413,2]
[351802991,1738792274784,-1037.86402666,0.00013423,2]
[351802992,1738792274793,-781.52,0.00013423,2]
[351802993,1738792274802,-505.74,0.00013423,2]
[351802994,1738792274812,-1137.64,0.00013423,2]
[351802995,1738792274821,-590.41,0.00013423,2]
[351802996,1738792274830,-329.33,0.00013423,2]
[351802997,1738792274839,-843.056407,0.00013424,2]
[351802998,1738792274848,-843.056399,0.00013424,2]
[351802999,1738792274858,-500.0,0.00013424,2]
[351803000,1738792274867,-500.0,0.00013424,2]
[351803001,1738792274876,-500.0,0.00013424,2]
[351803002,1738792274886,-500.0,0.00013424,2]
[351803003,1738792274895,-500.0,0.00013424,2]
[351803004,1738792274904,-500.0,0.00013424,2]
[351803005,1738792274914,-500.0,0.00013424,2]
[351803006,1738792274924,-500.0,0.00013424,2]
[351803007,1738792274933,-500.0,0.00013424,2]
[351803008,1738792274942,-619.38533189,0.00013424,2]
[351803009,1738792274951,-3189.09116095,0.00013497,2]
[351803010,1738792274961,-2000.0,0.00013499,2]
[351803011,1738792274971,-1000.0,0.000135,2]
[351803012,1738792274980,-5000.0,0.000135,2]
[351803013,1738792274989,-484.9,0.000135,2]
[351803014,1738792274999,-484.9,0.000135,2]
[351803015,1738792275010,-151.0,0.000135,2]
[351803016,1738792275019,-282.37247,0.000135,2]
[351803017,1738792275028,-174.770892,0.000135,2]
[351803018,1738792275041,-174.770892,0.000135,2]
[351803019,1738792275050,-219.0,0.000135,2]
[351803020,1738792275060,-723.564264,0.00013506,2]
[351803021,1738792275069,-723.564264,0.00013506,2]
[351803022,1738792275079,-255.754891,0.00013506,2]
[351803023,1738792275088,-255.754891,0.00013506,2]
[351803024,1738792275098,-3365.377588,0.00013506,2]
[351803025,1738792275108,-3365.377585,0.00013506,2]
[351803026,1738792275118,-151.0,0.00013506,2]
[351803027,1738792275129,-498.26,0.00013518,2]
[351803028,1738792275139,-500.0,0.00013543,2]
[351803029,1738792275148,-500.0,0.00013543,2]
[351803030,1738792275159,-285.61,0.00013543,2]
[351803031,1738792275168,-500.0,0.00013543,2]
[351803032,1738792275178,-500.0,0.00013543,2]
[351803033,1738792275187,-539.96,0.00013543,2]
[351803034,1738792275197,-9191.02404363,0.00013548,3]
[351803035,1738792275207,-423.12578,0.00013548,2]
[351803036,1738792275216,-423.12578,0.00013548,2]
[351803037,1738792275225,-781.67,0.0001356,2]
[351803038,1738792275235,-505.84,0.0001356,2]
[351803039,1738792275245,-1137.78,0.0001356,2]
[351803040,1738792275254,-4807.15,0.000136,31]
[351803041,1738792275263,-4807.15,0.000136,31]
[351803042,1738792275272,-4807.15,0.000136,31]
[351803043,1738792275282,-4807.15,0.000136,31]
[351803044,1738792275293,-4807.15,0.000136,31]
[351803045,1738792275303,-4807.15,0.000136,31]
[351803046,1738792275313,-4807.15,0.000136,31]
[351803047,1738792275323,-4807.15,0.000136,31]
[351803048,1738792275333,-4807.15,0.000136,31]
[351803049,1738792275343,-4807.15,0.000136,31]
[351803050,1738792275352,-4807.15,0.000136,31]
[351803051,1738792275362,-4807.15,0.000136,31]
[351803052,1738792275372,-4807.15,0.000136,31]
[351803053,1738792275381,-4807.15,0.000136,31]
[351803054,1738792275391,-4807.15,0.000136,31]
[351803055,1738792275401,-4807.15,0.000136,31]
[351803056,1738792275412,-7570.09214282,0.00013604,2]
[351803057,1738792275420,-5000.0,0.00013604,2]
[351803058,1738792275430,-8118.0900435,0.00013604,2]
[351803059,1738792275440,-5000.0,0.00013604,2]
[351803060,1738792275449,-5000.0,0.00013604,2]
[351803061,1738792275458,-5000.0,0.00013604,2]
[351803062,1738792275469,-8365.55246995,0.00013607,2]
[351803063,1738792275480,-5000.0,0.00013607,2]
[351803064,1738792275489,-1000.0,0.0001367,2]
[351803065,1738792275498,-500.0,0.0001367,2]
[351803066,1738792275508,-1000.0,0.0001367,2]
[351803067,1738792275517,-500.0,0.0001367,2]
[351803068,1738792275527,-405.26625,0.0001367,2]
[351803069,1738792275536,-405.266244,0.0001367,2]
[351803070,1738792275546,-500.0,0.0001368,2]
[351803071,1738792275555,-500.0,0.0001368,2]
[351803072,1738792275564,-500.0,0.0001368,2]
[351803073,1738792275574,-500.0,0.0001368,2]
[351803074,1738792275584,-539.96,0.0001368,2]
[351803075,1738792275593,-152.0,0.00013687,7]
[351803076,1738792275604,-998.13759141,0.00013698,2]
[351803077,1738792275614,-1000.0,0.00013698,2]
[351803078,1738792275623,-523.19449963,0.00013698,2]
[351803079,1738792275632,-519.37908676,0.00013698,2]
[351803080,1738792275758,-3129.54543781,0.00013698,2]
[351803081,1738792275769,-1927.99,0.00013698,2]
[351803082,1738792275779,-1927.99,0.00013698,2]
[351803083,1738792275789,-1927.99,0.00013698,2]
[351803084,1738792275798,-1927.99,0.00013698,2]
[351803085,1738792275809,-1927.99,0.00013698,2]
[351803086,1738792275819,-1927.99,0.00013698,2]
[351803087,1738792275829,-1927.99,0.00013698,2]
[351803088,1738792275839,-1927.99,0.00013698,2]
[351803089,1738792275849,-1927.99,0.00013698,2]
[351803090,1738792275858,-1927.99,0.00013698,2]
[351803091,1738792275868,-1927.99,0.00013698,2]
[351803092,1738792275877,-1927.99,0.00013698,2]
[351803093,1738792275887,-1927.99,0.00013698,2]
[351803094,1738792275897,-1927.99,0.00013698,2]
[351803095,1738792275906,-1927.99,0.00013698,2]
[351803096,1738792275916,-1927.99,0.00013698,2]
[351803097,1738792275926,-1927.99,0.00013698,2]
[351803098,1738792275936,-1927.99,0.00013698,2]
[351803099,1738792275946,-1927.99,0.00013698,2]
[351803100,1738792275956,-1927.99,0.00013698,2]
[351803101,1738792275966,-1927.99,0.00013698,2]
[351803102,1738792275976,-1927.99,0.00013698,2]
[351803103,1738792275986,-1927.99,0.00013698,2]
[351803104,1738792275996,-1928.06576054,0.00013698,2]
[351803105,1738792276006,-3291.87,0.00013698,2]
[351803106,1738792276017,-3291.87,0.00013698,2]
[351803107,1738792276026,-3291.87,0.00013698,2]
[351803108,1738792276038,-3291.87,0.00013698,2]
[351803109,1738792276048,-3291.87,0.00013698,2]
[351803110,1738792276058,-3291.87,0.00013698,2]
[351803111,1738792276068,-3291.87,0.00013698,2]
[351803112,1738792276078,-3291.87,0.00013698,2]
[351803113,1738792276089,-3291.87,0.00013698,2]
[351803114,1738792276099,-3291.87,0.00013698,2]
[351803115,1738792276109,-3291.87,0.00013698,2]
[351803116,1738792276120,-3291.87,0.00013698,2]
[351803117,1738792276131,-3291.87,0.00013698,2]
[351803118,1738792276141,-3291.87,0.00013698,2]
[351803119,1738792276150,-3291.87,0.00013698,2]
[351803120,1738792276160,-3291.87,0.00013698,2]
[351803121,1738792276170,-3291.87,0.00013698,2]
[351803122,1738792276180,-3291.87,0.00013698,2]
[351803123,1738792276189,-3291.87,0.00013698,2]
[351803124,1738792276199,-3291.87,0.00013698,2]
[351803125,1738792276209,-3291.87,0.00013698,2]
[351803126,1738792276218,-3291.87,0.00013698,2]
[351803127,1738792276228,-3291.87,0.00013698,2]
[351803128,1738792276238,-3292.0814392,0.00013698,2]
[351803129,1738792276247,-584.41152297,0.00013698,30]
[351803130,1738792276258,-500.0,0.00013699,2]
[351803131,1738792276267,-500.0,0.00013699,2]
[351803132,1738792276277,-500.0,0.00013699,2]
[351803133,1738792276286,-500.0,0.00013699,2]
[351803134,1738792276296,-500.0,0.00013699,2]
[351803135,1738792276305,-500.0,0.00013699,2]
[351803136,1738792276315,-500.0,0.00013699,2]
[351803137,1738792276324,-500.0,0.00013699,2]
[351803138,1738792276334,-500.0,0.00013699,2]
[351803139,1738792276344,-500.0,0.00013699,2]
[351803140,1738792276353,-500.0,0.00013699,2]
[351803141,1738792276362,-500.0,0.00013699,2]
[351803142,1738792276372,-500.0,0.00013699,2]
[351803143,1738792276382,-154.8649275,0.00013699,30]
[351803144,1738792276391,-4545.08,0.00013699,2]
[351803145,1738792276400,-4545.08,0.00013699,2]
[351803146,1738792276410,-4545.08,0.00013699,2]
[351803147,1738792276419,-4545.08,0.00013699,2]
[351803148,1738792276428,-4545.08,0.00013699,2]
[351803149,1738792276437,-4545.08,0.00013699,2]
[351803150,1738792276447,-4545.08,0.00013699,2]
[351803151,1738792276456,-4545.08,0.00013699,2]
[351803152,1738792276466,-4545.08,0.00013699,2]
[351803153,1738792276475,-4545.08,0.00013699,2]
[351803154,1738792276484,-4545.08,0.00013699,2]
[351803155,1738792276493,-4545.08,0.00013699,2]
[351803156,1738792276503,-4545.08,0.00013699,2]
[351803157,1738792276513,-4545.08,0.00013699,2]
[351803158,1738792276522,-4545.08,0.00013699,2]
[351803159,1738792276531,-4545.08,0.00013699,2]
[351803160,1738792276540,-4545.08,0.00013699,2]
[351803161,1738792276550,-4545.08,0.00013699,2]
[351803162,1738792276559,-4545.23682715,0.00013699,2]
[351803163,1738792276568,-227.25,0.00013699,2]
[351803164,1738792276577,-227.25,0.00013699,2]
[351803165,1738792276586,-227.25,0.00013699,2]
[351803166,1738792276596,-227.25,0.00013699,2]
[351803167,1738792276605,-227.25,0.00013699,2]
[351803168,1738792276615,-227.25,0.00013699,2]
[351803169,1738792276624,-227.25,0.00013699,2]
[351803170,1738792276634,-227.25,0.00013699,2]
[351803171,1738792276643,-227.25,0.00013699,2]
[351803172,1738792276652,-227.25,0.00013699,2]
[351803173,1738792276662,-227.25,0.00013699,2]
[351803174,1738792276671,-227.25,0.00013699,2]
[351803175,1738792276680,-227.25,0.00013699,2]
[351803176,1738792276689,-227.25,0.00013699,2]
[351803177,1738792276699,-227.25,0.00013699,2]
[351803178,1738792276708,-227.25,0.00013699,2]
[351803179,1738792276719,-227.25,0.00013699,2]
[351803180,1738792276729,-227.25,0.00013699,2]
[351803181,1738792276738,-227.25,0.00013699,2]
[351803182,1738792276747,-227.33,0.00013699,2]
[351803183,1738792276758,-2000.0,0.00013699,2]
[351803184,1738792276769,-4000.0,0.00013699,2]
[351803185,1738792276778,-500.0,0.00013699,13]
[351803186,1738792276788,-500.0,0.00013699,13]
[351803187,1738792276798,-194.0,0.00013699,13]
[351803188,1738792276809,-500.0,0.00013699,13]
[351803189,1738792276821,-20429.06,0.00013699,2]
[351803190,1738792276831,-10031.6,0.00013699,2]
[351803191,1738792276841,-516.0,0.00013699,13]
[351803192,1738792276852,-500.0,0.00013699,2]
[351803193,1738792276862,-200.0,0.00013699,2]
[351803194,1738792276872,-3441.37,0.00013699,2]
[351803195,1738792276882,-500.0,0.00013699,13]
[351803196,1738792276891,-500.0,0.00013699,13]
[351803197,1738792276901,-500.0,0.00013699,13]
[351803198,1738792276911,-21689.53,0.00013699,2]
[351803199,1738792276921,-500.0,0.00013699,13]
[351803200,1738792276931,-500.0,0.00013699,13]
[351803201,1738792276940,-504.0,0.00013699,13]
[351803202,1738792276950,-86225.47,0.00013699,2]
[351803203,1738792276961,-1011.95,0.00013699,2]
[351803204,1738792276970,-500.0,0.00013699,13]
[351803205,1738792276980,-500.0,0.00013699,13]
[351803206,1738792276989,-500.0,0.00013699,13]
[351803207,1738792276998,-500.0,0.00013699,13]
[351803208,1738792277008,-500.0,0.00013699,13]
[351803209,1738792277018,-500.0,0.00013699,13]
[351803210,1738792277027,-500.0,0.00013699,13]
[351803211,1738792277039,-500.0,0.00013699,13]
[351803212,1738792277049,-500.0,0.00013699,13]
[351803213,1738792277059,-500.0,0.00013699,13]
[351803214,1738792277069,-500.0,0.00013699,13]
[351803215,1738792277079,-500.0,0.00013699,13]
[351803216,1738792277090,-500.0,0.00013699,13]
[351803217,1738792277100,-500.0,0.00013699,13]
[351803218,1738792277111,-500.0,0.00013699,13]
[351803219,1738792277123,-500.0,0.00013699,13]
[351803220,1738792277132,-500.0,0.00013699,13]
[351803221,1738792277142,-500.0,0.00013699,13]
[351803222,1738792277151,-500.0,0.00013699,13]
[351803223,1738792277160,-500.0,0.00013699,13]
[351803224,1738792277169,-500.0,0.00013699,13]
[351803225,1738792277180,-500.0,0.00013699,13]
[351803226,1738792277189,-500.0,0.00013699,13]
[351803227,1738792277200,-500.0,0.00013699,13]
[351803228,1738792277209,-500.0,0.00013699,13]
[351803229,1738792277219,-500.0,0.00013699,13]
[351803230,1738792277229,-500.0,0.00013699,13]
[351803231,1738792277238,-500.0,0.00013699,13]
[351803232,1738792277248,-500.0,0.00013699,13]
[351803233,1738792277257,-500.0,0.00013699,13]
[351803234,1738792277267,-500.0,0.00013699,13]
[351803235,1738792277277,-500.0,0.00013699,13]
[351803236,1738792277286,-500.0,0.00013699,13]
[351803237,1738792277295,-500.0,0.00013699,13]
[351803238,1738792277305,-284.0,0.00013699,13]
[351803239,1738792277315,-500.0,0.00013699,2]
[351803240,1738792277326,-500.0,0.00013699,2]
[351803241,1738792277335,-500.0,0.00013699,2]
[351803242,1738792277344,-500.0,0.00013699,2]
[351803243,1738792277355,-500.0,0.00013699,2]
[351803244,1738792277364,-500.0,0.00013699,2]
[351803245,1738792277374,-301.95411411,0.00013699,2]
[351803246,1738792277383,-531.67468329,0.00013699,2]
[351803247,1738792277394,-160.32963308,0.00013699,2]
[351803248,1738792277404,-316.02710124,0.00013699,2]
[351803249,1738792277413,-324.19000548,0.00013699,2]
[351803250,1738792277423,-207.04365952,0.00013699,2]
[351803251,1738792277433,-357.93612838,0.00013699,2]
[351803252,1738792277443,-501.368336,0.00013699,2]
[351803253,1738792277453,-517.27346563,0.00013699,2]
[351803254,1738792277463,-500.0,0.00013699,2]
[351803255,1738792277473,-152.19356313,0.00013699,2]
[351803256,1738792277484,-500.0,0.00013699,2]
[351803257,1738792277494,-518.35598815,0.00013699,2]
[351803258,1738792277504,-161.39280441,0.00013699,2]
[351803259,1738792277516,-467.15351,0.00013699,2]
[351803260,1738792277526,-467.153514,0.00013699,2]
[351803261,1738792277535,-151.0,0.00013699,2]
[351803262,1738792277545,-151.66952,0.00013699,2]
[351803263,1738792277554,-151.669528,0.00013699,2]
[351803264,1738792277564,-329.946685,0.00013699,2]
[351803265,1738792277573,-329.946685,0.00013699,2]
[351803266,1738792277583,-500.0,0.00013699,2]
[351803267,1738792277592,-559.45517448,0.00013699,2]
[351803268,1738792277602,-500.0,0.00013699,2]
[351803269,1738792277613,-500.0,0.00013699,2]
[351803270,1738792277622,-500.0,0.00013699,2]
[351803271,1738792277631,-500.0,0.000137,2]
[351803272,1738792277640,-500.0,0.000137,2]
[351803273,1738792277650,-288.064895,0.000137,2]
[351803274,1738792277659,-288.064886,0.000137,2]
[351803275,1738792277668,-155.962888,0.000137,2]
[351803276,1738792277678,-155.962882,0.000137,2]
[351803277,1738792277688,-1081.42346837,0.000137,2]
[351803278,1738792277697,-1081.42346837,0.000137,2]
[351803279,1738792277707,-1081.42346837,0.000137,2]
[351803280,1738792277717,-1081.42346837,0.000137,2]
[351803281,1738792277727,-1081.42346837,0.000137,2]
[351803282,1738792277736,-1081.42346837,0.000137,2]
[351803283,1738792277746,-1081.42346837,0.000137,2]
[351803284,1738792277758,-1081.42346837,0.000137,2]
[351803285,1738792277767,-1081.42346837,0.000137,2]
[351803286,1738792277777,-1081.42346837,0.000137,2]
[351803287,1738792277788,-1081.42346837,0.000137,2]
[351803288,1738792277798,-1081.42346837,0.000137,2]
[351803289,1738792277807,-1081.42346837,0.000137,2]
[351803290,1738792277816,-1081.42346837,0.000137,2]
[351803291,1738792277827,-1081.42346837,0.000137,2]
[351803292,1738792277838,-1081.42346837,0.000137,2]
[351803293,1738792277848,-1081.42346837,0.000137,2]
[351803294,1738792277859,-1081.42346837,0.000137,2]
[351803295,1738792277869,-1081.42346837,0.000137,2]
[351803296,1738792277879,-1081.42,0.000137,2]
[351803297,1738792277890,-1081.6414602,0.000137,2]
[351803298,1738792277900,-1081.6414602,0.000137,2]
[351803299,1738792278019,-1081.6414602,0.000137,2]
[351803300,1738792278031,-1081.6414602,0.000137,2]
[351803301,1738792278044,-1081.6414602,0.000137,2]
[351803302,1738792278054,-1081.6414602,0.000137,2]
[351803303,1738792278065,-1081.6414602,0.000137,2]
[351803304,1738792278075,-1081.6414602,0.000137,2]
[351803305,1738792278086,-1081.6414602,0.000137,2]
[351803306,1738792278096,-1081.6414602,0.000137,2]
[351803307,1738792278106,-1081.6414602,0.000137,2]
[351803308,1738792278117,-1081.6414602,0.000137,2]
[351803309,1738792278127,-1081.6414602,0.000137,2]
[351803310,1738792278138,-1081.6414602,0.000137,2]
[351803311,1738792278148,-1081.6414602,0.000137,2]
[351803312,1738792278158,-1081.6414602,0.000137,2]
[351803313,1738792278167,-1081.6414602,0.000137,2]
[351803314,1738792278177,-1081.6414602,0.000137,2]
[351803315,1738792278187,-1081.6414602,0.000137,2]
[351803316,1738792278197,-1081.64,0.000137,2]
[351803317,1738792278207,-594.47505854,0.000137,2]
[351803318,1738792278218,-594.47505854,0.000137,2]
[351803319,1738792278228,-594.47505854,0.000137,2]
[351803320,1738792278238,-594.47505854,0.000137,2]
[351803321,1738792278248,-594.47505854,0.000137,2]
[351803322,1738792278260,-594.47505854,0.000137,2]
[351803323,1738792278270,-594.47505854,0.000137,2]
[351803324,1738792278279,-594.47505854,0.000137,2]